bitfinex/quotes_BTCUSD_20250920
["timestamp","ask_amount","ask_price","bid_price","bid_amount"]
[1758333842518,1.6217146,115770.0,115760.0,0.09051519]
[1758333842772,1.6217146,115770.0,115760.0,0.11502519]
[1758333844652,1.6217146,115770.0,115760.0,0.08744519]
[1758333849615,1.2817146,115770.0,115760.0,0.08744519]
[1758333849880,1.62169132,115770.0,115760.0,0.08744519]
[1758333850287,1.62169132,115770.0,115760.0,0.08533519]
[1758333868130,1.62170743,115770.0,115760.0,0.08533519]
[1758333870893,1.59785743,115770.0,115760.0,0.08533519]
[1758333871073,1.97329348,115770.0,115760.0,0.08533519]
[1758333871872,1.97138348,115770.0,115760.0,0.08533519]
[1758333872271,2.03459315,115770.0,115760.0,0.08533519]
[1758333872512,2.05856315,115770.0,115760.0,1e-08]
[1758333872695,0.56593538,115760.0,115750.0,0.0005]
[1758333872916,1.82582174,115760.0,115750.0,0.0005]
[1758333873054,1.85186174,115760.0,115750.0,0.0005]
[1758333873262,1.85196174,115760.0,115750.0,0.0005]
[1758333873473,1.88676044,115760.0,115750.0,0.0005]
[1758333874078,1.88676044,115760.0,115750.0,0.0045]
[1758333874676,1.88676044,115760.0,115750.0,0.0055]
[1758333877222,1.88676044,115760.0,115750.0,0.0015]
[1758333877439,1.88876044,115760.0,115750.0,0.0015]
[1758333877655,1.89073044,115760.0,115750.0,0.0015]
[1758333878123,1.89073044,115760.0,115750.0,0.0005]
[1758333879342,1.98073044,115760.0,115750.0,0.0005]
[1758333880934,1.98077044,115760.0,115750.0,0.0005]
[1758333881117,1.97877296,115760.0,115750.0,0.0005]
[1758333882324,1.98074296,115760.0,115750.0,0.0005]
[1758333885112,1.98072924,115760.0,115750.0,0.0005]
[1758333885731,1.97875924,115760.0,115750.0,0.0005]
[1758333886139,1.97875901,115760.0,115750.0,0.0005]
[1758333887738,1.98072901,115760.0,115750.0,0.0005]
[1758333888368,1.70983901,115760.0,115750.0,0.00254]
[1758333888633,1.95271901,115760.0,115750.0,0.02867]
[1758333890753,1.92608014,115760.0,115750.0,0.02867]
[1758333895609,1.95203014,115760.0,115750.0,0.02867]
[1758333896101,1.95203014,115760.0,115750.0,0.00254]
[1758333896978,1.95203794,115760.0,115750.0,0.00254]
[1758333897338,1.95203794,115760.0,115750.0,0.0005]
[1758333897550,1.98062681,115760.0,115750.0,0.0005]
[1758333897968,1.97856681,115760.0,115750.0,0.0005]
[1758333898596,1.95470681,115760.0,115750.0,0.0005]
[1758333898822,1.98062681,115760.0,115750.0,0.0005]
[1758333899068,1.97856681,115760.0,115750.0,0.0005]
[1758333902019,1.98062681,115760.0,115750.0,0.0005]
[1758333902438,3.03464802,115760.0,115750.0,0.0005]
[1758333903430,2.06589648,115760.0,115750.0,0.0005]
[1758333903678,1.95398794,115760.0,115750.0,0.0005]
[1758333904062,1.68300794,115760.0,115750.0,0.0005]
[1758333904272,1.65716794,115760.0,115750.0,0.02919]
[1758333904680,1.92616794,115760.0,115750.0,0.02919]
[1758333906304,2.01960794,115760.0,115750.0,0.02919]
[1758333908331,2.04419794,115760.0,115750.0,0.00263]
[1758333910011,1.39845094,115760.0,115750.0,0.00263]
[1758333911815,1.39845094,115760.0,115750.0,0.0005]
[1758333912025,1.42508981,115760.0,115750.0,0.0005]
[1758333912449,1.74809435,115760.0,115750.0,0.0005]
[1758333912667,1.75015435,115760.0,115750.0,0.0005]
[1758333916825,1.74809435,115760.0,115750.0,0.0005]
[1758333917787,1.74809435,115760.0,115750.0,0.00576]
[1758333918220,0.75533114,115760.0,115750.0,0.02919]
[1758333918418,1.07833568,115760.0,115750.0,0.02919]
[1758333918624,1.34757568,115760.0,115750.0,0.02919]
[1758333919124,1.34759016,115760.0,115750.0,0.02919]
[1758333920427,1.07835016,115760.0,115750.0,0.02919]
[1758333920635,1.34759016,115760.0,115750.0,0.02919]
[1758333921271,1.37416034,115760.0,115750.0,0.02919]
[1758333923881,1.34759016,115760.0,115750.0,0.02919]
[1758333925461,1.37218016,115760.0,115750.0,0.02919]
[1758333926913,1.37019506,115760.0,115750.0,0.02919]
[1758333927114,1.3969874,115760.0,115750.0,0.02919]
[1758333929748,1.0569874,115760.0,115750.0,0.02919]
[1758333930568,1.34754506,115760.0,115750.0,0.02919]
[1758333930809,1.34148218,115760.0,115750.0,0.02919]
[1758333931012,1.34754441,115760.0,115750.0,0.02919]
[1758333933178,1.00754441,115760.0,115750.0,0.02919]
[1758333933585,1.07834441,115760.0,115750.0,0.02919]
[1758333933796,1.37458607,115760.0,115750.0,0.02919]
[1758333935017,1.37409968,115760.0,115750.0,0.02919]
[1758333935439,1.39971968,115760.0,115750.0,0.02919]
[1758333936001,1.37409968,115760.0,115750.0,0.02919]
[1758333937532,1.39758968,115760.0,115750.0,0.02919]
[1758333938635,1.39971968,115760.0,115750.0,0.02919]
[1758333939427,1.39971968,115760.0,115750.0,0.02606]
[1758333942182,1.39971968,115760.0,115750.0,0.00263]
[1758333942811,1.07671514,115760.0,115750.0,0.00263]
[1758333943032,1.39758968,115760.0,115750.0,0.00585]
[1758333943498,1.39971968,115760.0,115750.0,0.00585]
[1758333945875,1.37271802,115760.0,115750.0,0.00585]
[1758333946578,1.37271802,115760.0,115750.0,0.00263]
[1758333948332,1.37271802,115760.0,115750.0,0.0005]
[1758333948731,1.37271802,115760.0,115750.0,0.00257]
[1758333948882,1.40000205,115760.0,115750.0,0.00257]
[1758333951984,1.40000205,115760.0,115750.0,0.0005]
[1758333953176,1.40191205,115760.0,115750.0,0.0005]
[1758333953401,1.42875453,115760.0,115750.0,0.0005]
[1758333953626,1.75175907,115760.0,115750.0,0.0005]
[1758333954810,1.48251907,115760.0,115750.0,0.0005]
[1758333954939,1.75163907,115760.0,115750.0,0.0005]
[1758333957540,1.75164246,115760.0,115750.0,0.0005]
[1758333960454,1.74973246,115760.0,115750.0,0.0005]
[1758333961217,1.48061246,115760.0,115750.0,0.0005]
[1758333961425,1.74973246,115760.0,115750.0,0.00266]
[1758333961664,1.42672792,115760.0,115750.0,0.00266]
[1758333963324,1.13411792,115760.0,115750.0,0.02764]
[1758333963539,1.37434544,115760.0,115750.0,0.03076]
[1758333964304,1.39801544,115760.0,115750.0,0.03076]
[1758333964729,1.40011544,115760.0,115750.0,0.02764]
[1758333965030,1.4001202,115760.0,115750.0,0.02764]
[1758333968384,1.4001202,115760.0,115750.0,0.00266]
[1758333970124,1.4001202,115760.0,115750.0,0.0005]
[1758333971876,2.04610774,115760.0,115750.0,0.0005]
[1758333972996,2.04610665,115760.0,115750.0,0.0005]
[1758333977602,1.75113665,115760.0,115750.0,0.00266]
[1758333977839,2.02021665,115760.0,115750.0,0.03076]
[1758333978296,2.04598665,115760.0,115750.0,0.00266]
[1758333978521,2.04598665,115760.0,115750.0,0.0005]
[1758333979767,2.04598665,115760.0,115750.0,0.00266]
[1758333979981,2.04598665,115760.0,115750.0,0.00578]
[1758333980538,2.04598665,115760.0,115750.0,0.00266]
[1758333982372,2.04598624,115760.0,115750.0,0.00266]
[1758333984902,2.04598627,115760.0,115750.0,0.00266]
[1758334000404,2.04598627,115760.0,115750.0,0.0005]
[1758334002727,2.04792627,115760.0,115750.0,0.0005]
[1758334003569,2.07476875,115760.0,115750.0,0.0005]
[1758334004479,2.0728325,115760.0,115750.0,0.0005]
[1758334004897,2.0747725,115760.0,115750.0,0.0005]
[1758334005116,2.07477392,115760.0,115750.0,0.0005]
[1758334007039,2.07283392,115760.0,115750.0,0.0005]
[1758334010722,1.80375392,115760.0,115750.0,0.0005]
[1758334010881,2.07279392,115760.0,115750.0,0.0005]
[1758334013446,1.80375392,115760.0,115750.0,0.0005]
[1758334013728,2.07279392,115760.0,115750.0,0.0005]
[1758334013930,1.80375392,115760.0,115750.0,0.0005]
[1758334014124,2.04595144,115760.0,115750.0,0.029]
[1758334014244,1.75114144,115760.0,115750.0,0.00566]
[1758334014464,2.02018144,115760.0,115750.0,0.029]
[1758334015434,1.75114144,115760.0,115750.0,0.029]
[1758334015654,2.02018144,115760.0,115750.0,0.029]
[1758334016214,1.99289741,115760.0,115750.0,0.029]
[1758334018076,2.01559741,115760.0,115750.0,0.029]
[1758334018281,2.01757741,115760.0,115750.0,0.00566]
[1758334018526,2.01757741,115760.0,115750.0,0.00245]
[1758334022076,1.72385741,115760.0,115750.0,0.00568]
[1758334022294,0.75486533,115760.0,115750.0,0.02873]
[1758334022516,0.72168686,115760.0,115750.0,0.32426745]
[1758334022725,1.31380265,115760.0,115750.0,0.30698884]
[1758334023158,1.65380265,115760.0,115750.0,0.30698884]
[1758334023376,1.31380265,115760.0,115750.0,0.30698884]
[1758334023592,1.65380265,115760.0,115750.0,0.30698884]
[1758334023956,1.65180265,115760.0,115750.0,0.30698884]
[1758334024371,1.65180265,115760.0,115750.0,0.31398884]
[1758334024775,1.65180265,115760.0,115750.0,0.31298884]
[1758334024985,1.38268265,115760.0,115750.0,0.31598884]
[1758334025192,1.65180265,115760.0,115750.0,0.31598884]
[1758334026280,1.64573828,115760.0,115750.0,0.31598884]
[1758334026499,1.64573828,115760.0,115750.0,0.14320267]
[1758334030977,1.67356122,115760.0,115750.0,0.14320267]
[1758334031780,1.35045339,115760.0,115750.0,0.14320267]
[1758334033046,1.35037339,115760.0,115750.0,0.14320267]
[1758334033250,1.35037339,115760.0,115750.0,0.14335267]
[1758334035874,1.35235339,115760.0,115750.0,0.11707267]
[1758334036087,1.37695339,115760.0,115750.0,0.11707267]
[1758334036481,1.37695339,115760.0,115750.0,0.14335267]
[1758334036692,1.37497339,115760.0,115750.0,0.14012267]
[1758334036893,1.37497339,115760.0,115750.0,0.14335267]
[1758334037112,1.37695339,115760.0,115750.0,0.14335267]
[1758334041557,1.37695339,115760.0,115750.0,0.12030267]
[1758334046954,1.37695339,115760.0,115750.0,0.11707267]
[1758334048350,1.38301259,115760.0,115750.0,0.11707267]
[1758334056034,1.0601257,115760.0,115750.0,0.11707267]
[1758334056243,1.38301259,115760.0,115750.0,0.12024267]
[1758334056675,1.11397259,115760.0,115750.0,0.12024267]
[1758334056896,1.38293259,115760.0,115750.0,0.12024267]
[1758334057081,1.38293259,115760.0,115750.0,0.14441267]
[1758334058561,1.0600457,115760.0,115750.0,0.14441267]
[1758334058776,1.38293259,115760.0,115750.0,0.14441267]
[1758334058949,1.38293259,115760.0,115750.0,0.14124267]
[1758334061160,1.11397259,115760.0,115750.0,0.31719884]
[1758334061364,1.35312965,115760.0,115750.0,0.14441267]
[1758334063792,1.35510965,115760.0,115750.0,0.14441267]
[1758334065626,1.35312965,115760.0,115750.0,0.14441267]
[1758334065760,1.32852965,115760.0,115750.0,0.14441267]
[1758334065985,1.32853804,115760.0,115750.0,0.14441267]
[1758334067589,1.35200804,115760.0,115750.0,0.14441267]
[1758334070729,1.35398804,115760.0,115750.0,0.14124267]
[1758334071128,1.35398804,115760.0,115750.0,0.11707267]
[1758334072031,1.35398804,115760.0,115750.0,0.11497267]
[1758334081868,1.35398804,115760.0,115750.0,0.11693267]
[1758334083997,1.08502804,115760.0,115750.0,0.11693267]
[1758334084195,1.35410804,115760.0,115750.0,0.14471267]
[1758334084448,1.05957804,115760.0,115750.0,0.14471267]
[1758334084664,1.32873804,115760.0,115750.0,0.16199128]
[1758334085109,1.32873804,115760.0,115750.0,0.33477745]
[1758334085293,1.32873804,115760.0,115750.0,0.31749884]
[1758334088067,1.32873804,115760.0,115750.0,0.14471267]
[1758334088311,1.32873804,115760.0,115750.0,0.16199128]
[1758334090368,1.35416804,115760.0,115750.0,0.14471267]
[1758334091408,1.35416804,115760.0,115750.0,0.11693267]
[1758334091842,1.33073804,115760.0,115750.0,0.11497267]
[1758334092039,1.35620804,115760.0,115750.0,0.11497267]
[1758334092446,1.35416804,115760.0,115750.0,0.11497267]
[1758334093745,2.00005369,115760.0,115750.0,0.11497267]
[1758334098545,1.03128115,115760.0,115750.0,0.11497267]
[1758334098759,2.00005369,115760.0,115750.0,0.11497267]
[1758334100564,2.00025369,115760.0,115750.0,0.11497267]
[1758334104280,1.73089369,115760.0,115750.0,0.11497267]
[1758334104430,2.00021369,115760.0,115750.0,0.11497267]
[1758334106637,1.73089369,115760.0,115750.0,0.11497267]
[1758334106845,2.00017369,115760.0,115750.0,0.11497267]
[1758334119656,2.00017243,115760.0,115750.0,0.11497267]
[1758334121486,2.00221243,115760.0,115750.0,0.11497267]
[1758334121759,2.03003537,115760.0,115750.0,0.09476967]
[1758334124048,1.06126283,115760.0,115750.0,0.09476967]
[1758334124251,2.03003537,115760.0,115750.0,0.09476967]
[1758334132271,2.02799537,115760.0,115750.0,0.09476967]
[1758334133661,1.75871537,115760.0,115750.0,0.09476967]
[1758334133858,2.02791537,115760.0,115750.0,0.12425872]
[1758334134191,1.75871537,115760.0,115750.0,0.09476967]
[1758334134350,2.02791537,115760.0,115750.0,0.09476967]
[1758334140219,1.75871537,115760.0,115750.0,0.09476967]
[1758334140426,2.02791537,115760.0,115750.0,0.09476967]
[1758334142162,1.75871537,115760.0,115750.0,0.09476967]
[1758334142375,2.02791537,115760.0,115750.0,0.12944872]
[1758334142602,2.02787537,115760.0,115750.0,0.15380872]
[1758334142821,1.73328537,115760.0,115750.0,0.15380872]
[1758334143058,2.00248537,115760.0,115750.0,0.15380872]
[1758334144446,1.03371283,115760.0,115750.0,0.15380872]
[1758334144630,2.00248537,115760.0,115750.0,0.15380872]
[1758334144828,2.02584537,115760.0,115750.0,0.15380872]
[1758334145838,2.02784537,115760.0,115750.0,0.15380872]
[1758334146250,2.02784537,115760.0,115750.0,0.15061872]
[1758334147216,2.02784537,115760.0,115750.0,0.12625872]
[1758334153978,1.38201801,115760.0,115750.0,0.12625872]
[1758334155108,1.38201801,115760.0,115750.0,0.12425872]
[1758334155771,1.38201801,115760.0,115750.0,0.09476967]
[1758334163200,1.70496319,115760.0,115750.0,0.09476967]
[1758334163630,1.38201801,115760.0,115750.0,0.09476967]
[1758334169601,1.70496319,115760.0,115750.0,0.09476967]
[1758334169812,1.38201801,115760.0,115750.0,0.09476967]
[1758334170031,1.38201801,115760.0,115750.0,0.10705164]
[1758334170231,1.70700319,115760.0,115750.0,0.02178197]
[1758334170380,1.70700319,115760.0,115750.0,0.0095]
[1758334172220,1.70700319,115760.0,115750.0,0.0005]
[1758334172643,1.70700319,115760.0,115750.0,0.0035]
[1758334172828,1.73384567,115760.0,115750.0,0.0035]
[1758334173428,1.75000895,115760.0,115750.0,0.0035]
[1758334173852,1.75000895,115760.0,115750.0,0.0045]
[1758334174291,1.46464567,115760.0,115750.0,0.0045]
[1758334174479,1.73372567,115760.0,115750.0,0.0045]
[1758334178319,1.46464567,115760.0,115750.0,0.0045]
[1758334178655,1.73368567,115760.0,115750.0,0.0045]
[1758334180253,1.74983492,115760.0,115750.0,0.0045]
[1758334181841,1.74983492,115760.0,115750.0,0.0035]
[1758334182040,1.74983492,115760.0,115750.0,0.0005]
[1758334182276,1.75083492,115760.0,115750.0,0.0005]
[1758334184504,1.48179492,115760.0,115750.0,0.0005]
[1758334184720,1.75083492,115760.0,115750.0,0.0005]
[1758334185313,1.75081133,115760.0,115750.0,0.0005]
[1758334186425,1.7346717,115760.0,115750.0,0.0005]
[1758334189444,1.75080962,115760.0,115750.0,0.0005]
[1758334201098,1.74876962,115760.0,115750.0,0.0005]
[1758334202225,1.18696867,115750.0,115740.0,1e-08]
[1758334202414,1.47819895,115750.0,115740.0,1e-08]
[1758334202637,1.50412895,115750.0,115740.0,0.00216001]
[1758334203074,0.1728011,115740.0,115730.0,0.0005]
[1758334203286,1.21551596,115740.0,115730.0,0.0005]
[1758334203521,1.21561596,115740.0,115730.0,0.00266]
[1758334204171,1.21561596,115740.0,115730.0,0.02933]
[1758334204374,1.21912737,115740.0,115730.0,0.02933]
[1758334204688,1.30912737,115740.0,115730.0,0.02933]
[1758334205240,1.30912737,115740.0,115730.0,0.03233]
[1758334205448,1.31108737,115740.0,115730.0,0.0035]
[1758334205855,1.67505737,115740.0,115730.0,0.00566]
[1758334206233,1.67505737,115740.0,115730.0,0.01478]
[1758334208466,1.67505737,115740.0,115730.0,0.01166]
[1758334209303,1.70189985,115740.0,115730.0,0.01166]
[1758334212190,1.67792985,115740.0,115730.0,0.01166]
[1758334212427,1.70511985,115740.0,115730.0,0.0095]
[1758334212661,2.02806503,115740.0,115730.0,0.0095]
[1758334213917,2.99830559,115740.0,115730.0,0.0095]
[1758334214666,3.0144464,115740.0,115730.0,0.0095]
[1758334215283,3.09971607,115740.0,115730.0,0.0095]
[1758334215491,3.0144464,115740.0,115730.0,0.0095]
[1758334221927,3.0144464,115740.0,115730.0,0.0035]
[1758334222127,3.0184464,115740.0,115730.0,0.0035]
[1758334222680,2.7494064,115740.0,115730.0,0.0035]
[1758334222902,3.0186464,115740.0,115730.0,0.0035]
[1758334223079,3.0186464,115740.0,115730.0,0.0005]
[1758334223518,2.83667607,115740.0,115730.0,0.0005]
[1758334223763,3.10591607,115740.0,115730.0,0.0005]
[1758334227082,3.10591607,115740.0,115720.0,0.0005]
[1758334227083,0.56729332,115730.0,115720.0,0.0005]
[1758334227237,1.81208373,115730.0,115720.0,0.0005]
[1758334227464,1.81413373,115730.0,115720.0,0.00253]
[1758334227673,1.83918373,115730.0,115720.0,0.00253]
[1758334228296,1.8661717,115730.0,115720.0,0.00253]
[1758334228677,0.51283097,115720.0,115710.0,0.02513]
[1758334228885,1.78591352,115720.0,115710.0,0.02513]
[1758334229095,1.78591352,115720.0,115710.0,0.02716]
[1758334229728,1.81200148,115720.0,115710.0,0.02716]
[1758334230183,1.81200148,115720.0,115710.0,0.02816]
[1758334230410,1.81200148,115720.0,115710.0,0.02701]
[1758334231331,1.81200148,115720.0,115710.0,0.033]
[1758334232583,1.81200148,115720.0,115710.0,0.03001]
[1758334233017,1.81405148,115720.0,115710.0,0.03001]
[1758334233220,1.93244148,115720.0,115710.0,0.03001]
[1758334233740,1.90749148,115720.0,115710.0,0.00603]
[1758334234196,1.93551148,115720.0,115710.0,0.00603]
[1758334234405,1.96169663,115720.0,115710.0,0.004]
[1758334234609,2.28487598,115720.0,115710.0,0.004]
[1758334234743,1.96169663,115720.0,115710.0,0.004]
[1758334238387,1.69249663,115720.0,115710.0,0.004]
[1758334238672,1.96161663,115720.0,115710.0,0.00603]
[1758334238893,1.93154663,115720.0,115710.0,0.033]
[1758334240082,1.93162663,115720.0,115710.0,0.033]
[1758334240599,1.93367663,115720.0,115710.0,0.03001]
[1758334240798,1.95862663,115720.0,115710.0,0.03001]
[1758334241352,1.95862663,115720.0,115710.0,0.00603]
[1758334241353,1.96169663,115720.0,115710.0,0.00603]
[1758334241940,1.95862663,115720.0,115710.0,0.00603]
[1758334242318,1.96169663,115720.0,115710.0,0.00603]
[1758334243358,1.95564427,115720.0,115710.0,0.00603]
[1758334243481,1.96170006,115720.0,115710.0,0.00603]
[1758334243704,1.96170006,115720.0,115710.0,0.004]
[1758334255310,1.96170303,115720.0,115710.0,0.004]
[1758334257488,2.93124108,115720.0,115710.0,0.004]
[1758334257708,1.96170303,115720.0,115710.0,0.004]
[1758334258591,1.69250303,115720.0,115710.0,0.004]
[1758334258801,1.96182303,115720.0,115710.0,0.004]
[1758334259004,1.96210303,115720.0,115710.0,0.004]
[1758334261299,1.97826443,115720.0,115710.0,0.004]
[1758334262621,1.00872638,115720.0,115710.0,0.004]
[1758334262836,1.97826443,115720.0,115710.0,0.004]
[1758334264642,1.70866443,115720.0,115710.0,0.004]
[1758334264785,1.97830443,115720.0,115710.0,0.004]
[1758334266757,2.06830443,115720.0,115710.0,0.004]
[1758334273458,1.09876638,115720.0,115710.0,0.004]
[1758334273665,2.05214303,115720.0,115710.0,0.004]
[1758334273882,2.06830946,115720.0,115710.0,0.004]
[1758334275934,1.74520445,115720.0,115710.0,0.004]
[1758334276578,1.74314445,115720.0,115710.0,0.004]
[1758334277885,1.74314451,115720.0,115710.0,0.004]
[1758334278323,1.74314451,115720.0,115710.0,0.00616]
[1758334278324,1.68559722,115720.0,115710.0,0.00616]
[1758334278506,1.66270722,115720.0,115710.0,0.00616]
[1758334278704,1.39306722,115720.0,115710.0,0.00616]
[1758334278918,1.32215688,115720.0,115710.0,0.03381]
[1758334279672,1.32215688,115720.0,115710.0,0.03076]
[1758334280909,1.32730688,115720.0,115710.0,0.03076]
[1758334281098,1.35019688,115720.0,115710.0,0.03076]
[1758334281312,1.35019688,115720.0,115710.0,0.00616]
[1758334284540,1.35019688,115720.0,115710.0,0.004]
[1758334285799,1.35019634,115720.0,115710.0,0.004]
[1758334286181,1.35023634,115720.0,115710.0,0.004]
[1758334287762,1.35023634,115720.0,115710.0,0.00604]
[1758334290302,1.35023634,115720.0,115710.0,0.004]
[1758334291182,1.67345286,115720.0,115710.0,0.004]
[1758334291806,1.35023634,115720.0,115710.0,0.004]
[1758334292047,1.67345286,115720.0,115710.0,0.004]
[1758334292907,1.02701982,115720.0,115710.0,0.004]
[1758334293132,1.67345286,115720.0,115710.0,0.004]
[1758334293681,1.67345277,115720.0,115710.0,0.004]
[1758334298178,1.67333277,115720.0,115710.0,0.004]
[1758334303206,1.67333293,115720.0,115710.0,0.004]
[1758334304741,1.40289293,115720.0,115710.0,0.00604]
[1758334304955,1.67321293,115720.0,115710.0,0.00604]
[1758334305167,1.67321293,115720.0,115710.0,0.004]
[1758334309905,1.68937697,115720.0,115710.0,0.004]
[1758334312446,1.68937752,115720.0,115710.0,0.004]
[1758334336274,1.68889752,115720.0,115710.0,0.004]
[1758334337832,2.01208257,115720.0,115710.0,0.004]
[1758334339113,1.74224257,115720.0,115710.0,0.004]
[1758334339317,2.01216257,115720.0,115710.0,0.004]
[1758334339751,1.99599853,115720.0,115710.0,0.004]
[1758334340194,1.99600074,115720.0,115710.0,0.004]
[1758334347551,1.99600074,115720.0,115710.0,0.00596]
[1758334347552,1.37483471,115720.0,115710.0,0.00596]
[1758334347759,1.64467471,115720.0,115710.0,0.03259]
[1758334347932,1.64467471,115720.0,115710.0,0.053265]
[1758334348406,1.96788074,115720.0,115710.0,0.053265]
[1758334348734,1.64467471,115720.0,115710.0,0.053265]
[1758334349522,1.96788074,115720.0,115710.0,0.053265]
[1758334352083,1.96788074,115720.0,115710.0,0.026635]
[1758334352307,1.97002074,115720.0,115710.0,0.026635]
[1758334352518,1.99306074,115720.0,115710.0,0.050235]
[1758334353455,1.97002074,115720.0,115710.0,0.050235]
[1758334354125,1.96788074,115720.0,115710.0,0.050235]
[1758334354315,1.64467471,115720.0,115710.0,0.050235]
[1758334360268,1.64681471,115720.0,115710.0,0.050235]
[1758334360446,1.66985471,115720.0,115710.0,0.050235]
[1758334362975,1.67299471,115720.0,115710.0,0.050235]
[1758334363151,1.66985471,115720.0,115710.0,0.050235]
[1758334363317,1.64681471,115720.0,115710.0,0.050235]
[1758334364837,1.64681471,115720.0,115710.0,0.026635]
[1758334365018,1.66985471,115720.0,115710.0,0.026635]
[1758334365224,1.67299471,115720.0,115710.0,0.026635]
[1758334366248,1.64681471,115720.0,115710.0,0.026635]
[1758334366824,1.37697471,115720.0,115710.0,0.026635]
[1758334367032,1.64487471,115720.0,115710.0,0.053265]
[1758334367453,1.64487471,115720.0,115710.0,0.050235]
[1758334367613,1.64701471,115720.0,115710.0,0.050235]
[1758334367842,1.67005471,115720.0,115710.0,0.050235]
[1758334368489,1.67319471,115720.0,115710.0,0.026635]
[1758334371380,1.67319471,115720.0,115710.0,0.024675]
[1758334375751,1.66713099,115720.0,115710.0,0.024675]
[1758334375956,1.026779,115720.0,115710.0,0.026695]
[1758334376254,1.67319106,115720.0,115710.0,0.024675]
[1758334378881,1.026779,115720.0,115710.0,0.024675]
[1758334379080,1.67319106,115720.0,115710.0,0.024675]
[1758334379909,1.57975106,115720.0,115710.0,0.024675]
[1758334384466,1.67319106,115720.0,115710.0,0.024675]
[1758334385875,1.99639709,115720.0,115710.0,0.024675]
[1758334387974,2.02475975,115720.0,115710.0,0.024675]
[1758334388197,2.02475975,115720.0,115710.0,0.004]
[1758334397788,1.70146994,115720.0,115710.0,0.004]
[1758334412020,1.05514166,115720.0,115710.0,0.004]
[1758334412245,1.67310728,115720.0,115710.0,0.004]
[1758334421984,1.67311145,115720.0,115710.0,0.004]
[1758334423664,0.72842317,115720.0,115710.0,0.00602]
[1758334423875,1.22806731,115720.0,115710.0,0.0295]
[1758334424087,1.22806731,115720.0,115710.0,0.05016204]
[1758334424506,1.25803731,115720.0,115710.0,0.02466204]
[1758334427107,0.93487317,115720.0,115710.0,0.02466204]
[1758334427379,1.25803731,115720.0,115710.0,0.02466204]
[1758334427585,1.35147731,115720.0,115710.0,0.02466204]
[1758334428905,1.35147731,115720.0,115710.0,0.004]
[1758334429540,1.67464145,115720.0,115710.0,0.004]
[1758334431557,1.35147731,115720.0,115710.0,0.004]
[1758334440543,1.35123731,115720.0,115710.0,0.004]
[1758334440991,1.67440107,115720.0,115710.0,0.004]
[1758334441463,1.70276373,115720.0,115710.0,0.004]
[1758334459876,2.02592109,115720.0,115710.0,0.004]
[1758334461370,2.02592109,115720.0,115710.0,0.0029815]
[1758334463460,1.05643545,115720.0,115710.0,0.0029815]
[1758334463668,2.02592109,115720.0,115710.0,0.0029815]
[1758334464341,2.02592148,115720.0,115710.0,0.0029815]
[1758334500015,2.02592147,115720.0,115710.0,0.0029815]
[1758334504005,1.75624147,115720.0,115710.0,0.0029815]
[1758334504204,2.02576147,115720.0,115710.0,0.0029815]
[1758334504673,1.75624147,115720.0,115710.0,0.0029815]
[1758334504861,2.02576147,115720.0,115710.0,0.0029815]
[1758334505317,1.75624147,115720.0,115710.0,0.0029815]
[1758334505766,1.72787881,115720.0,115710.0,0.0029815]
[1758334505982,1.99739881,115720.0,115710.0,0.0029815]
[1758334506460,1.67292693,115720.0,115710.0,0.0051415]
[1758334507344,1.37982693,115720.0,115710.0,0.0051415]
[1758334507580,1.64631693,115720.0,115710.0,0.0296915]
[1758334508017,1.66989693,115720.0,115710.0,0.0296915]
[1758334508454,1.67312693,115720.0,115710.0,0.0051415]
[1758334509529,1.64631693,115720.0,115710.0,0.0051415]
[1758334509703,1.64631693,115720.0,115710.0,0.0296915]
[1758334509875,1.66989693,115720.0,115710.0,0.0296915]
[1758334510071,1.67312693,115720.0,115710.0,0.0051415]
[1758334510296,1.67312693,115720.0,115710.0,0.02366843]
[1758334510502,1.673124,115720.0,115710.0,0.02366843]
[1758334510713,1.673124,115720.0,115710.0,0.02582843]
[1758334511124,1.403604,115720.0,115710.0,0.02582843]
[1758334511353,1.646314,115720.0,115710.0,0.05037843]
[1758334511968,1.669894,115720.0,115710.0,0.05037843]
[1758334512181,1.673124,115720.0,115710.0,0.02582843]
[1758334516276,1.579684,115720.0,115710.0,0.02582843]
[1758334518619,1.579684,115720.0,115710.0,0.02366843]
[1758334521062,1.673124,115720.0,115710.0,0.02366843]
[1758334521872,1.34992748,115720.0,115710.0,0.02366843]
[1758334530432,1.34992788,115720.0,115710.0,0.02366843]
[1758334552352,1.02680064,115720.0,115710.0,0.02366843]
[1758334552559,1.34992788,115720.0,115710.0,0.02366843]
[1758334564090,1.08040788,115720.0,115710.0,0.02366843]
[1758334564288,1.34984788,115720.0,115710.0,0.02366843]
[1758334564666,1.70135648,115720.0,115710.0,0.0029815]
[1758334568626,1.70135807,115720.0,115710.0,0.0029815]
[1758334569436,1.05510359,115720.0,115710.0,0.0029815]
[1758334569653,1.70135807,115720.0,115710.0,0.0029815]
[1758334574454,1.72754322,115720.0,115710.0,0.0029815]
[1758334577706,1.45810322,115720.0,115710.0,0.0029815]
[1758334577944,1.72754322,115720.0,115710.0,0.0029815]
[1758334579829,1.45810322,115720.0,115710.0,0.0029815]
[1758334580456,1.72754322,115720.0,115710.0,0.0029815]
[1758334583775,2.05102626,115720.0,115710.0,0.0029815]
[1758334584901,3.02076378,115720.0,115710.0,0.0029815]
[1758334585096,2.05102626,115720.0,115710.0,0.0029815]
[1758334585723,3.02076378,115720.0,115710.0,0.0029815]
[1758334586142,3.03691093,115720.0,115710.0,0.0029815]
[1758334586955,0.5128459,115710.0,115700.0,0.0013]
[1758334587159,1.78460808,115710.0,115700.0,0.0013]
[1758334587363,1.81295808,115710.0,115700.0,0.0013]
[1758334587737,1.83649808,115710.0,115700.0,0.0013]
[1758334588086,1.83659808,115710.0,115700.0,0.0013]
[1758334589329,1.83659808,115710.0,115700.0,0.0063]
[1758334590303,1.83658628,115710.0,115700.0,0.0083]
[1758334596553,1.51334044,115710.0,115700.0,0.0083]
[1758334596774,1.24390044,115710.0,115700.0,0.0083]
[1758334596982,1.51334044,115710.0,115700.0,0.0083]
[1758334598029,1.83658628,115710.0,115700.0,0.0083]
[1758334598633,1.56714628,115710.0,115700.0,0.0083]
[1758334599074,1.83658628,115710.0,115700.0,0.0083]
[1758334599291,1.51334044,115710.0,115700.0,0.0083]
[1758334601255,1.83658628,115710.0,115700.0,0.0083]
[1758334601473,1.86277143,115710.0,115700.0,0.0083]
[1758334603803,1.86277278,115710.0,115700.0,0.0083]